[Event "EYCC Girls U14 2018"]
[Site "Riga"]
[Date "2018.08.28"]
[Round "8"]
[White "Eizaguerri Floris, Maria"]
[Black "Allahverdiyeva, Ayan"]
[Result "0-1"]
[ECO "D02"]
[WhiteElo "2065"]
[BlackElo "2046"]
[Annotator "NA RC"]
[PlyCount "86"]
[EventDate "2018.08.20"]
[EventType "swiss"]
[EventCountry "LAT"]
[SourceTitle "playchess.com"]
[Source "ChessBase"]
[SourceQuality "1"]
[TimeControl "40/5400+30:1800+30"]

1. d4 {[%emt 0:00:00]} d5 {[%emt 0:00:24]} 2. Nf3 {[%emt 0:00:00]} e6 {[%emt 0:00:05]} 3. e3 {[%emt 0:00:23]} c5 {[%emt 0:01:22]} 4. b3 {[%emt 0:00:32]} Nc6 {[%emt 0:00:34] D02: 1 d4 d5 2 Nf3 sidelines, including 2...Nf6 3 g3 and 2...Nf6 3 Bf4} (4... cxd4 5. exd4 Nc6 6. Bd3 Nf6 7. O-O Be7 8. Bb2 O-O 9. a3 {½-½ (9) Saptarshi,R (2476)-Drazic,S (2441) Backi Petrovac 2018}) 5. Bb2 {[%emt 0:01:16]} cxd4 {[%emt 0:00:15]} 6. exd4 {[%emt 0:00:16]} g6 {[%emt 0:01:32]} 7. Be2 $146 {[%emt 0:03:22]} ({Predecessor:} 7. Bd3 Nb4 8. Ne5 Nxd3+ 9. Qxd3 a6 10. O-O Nf6 11. Nd2 Bd7 12. Rae1 {1-0 (38) Cabrera Nunez,L (1906)-Rodriguez Naranjo,Y (1735) Santa Clara 2018}) 7... Bg7 {[%emt 0:00:04]} 8. O-O {[%emt 0:00:27]} Nge7 {[%emt 0:00:09]} 9. Ne5 {[%emt 0:03:45]} O-O {[%emt 0:01:57]} 10. Nd2 {[%emt 0:06:28]} f6 {[%emt 0:16:17]} 11. Nxc6 {[%emt 0:02:52]} Nxc6 {[%emt 0:03:20]} 12. f4 {[%emt 0:02:29]} Qb6 {[%emt 0:02:39]} 13. Nf3 {[%emt 0:03:20]} Bd7 {[%emt 0:11:05]} 14. Kh1 {[%emt 0:04:58]} Qc7 {[%emt 0:04:43]} 15. Qd2 {[%emt 0:02:50]} Bh6 {[%emt 0:00:41]} 16. Ne1 {[%emt 0:11:56]} Ne7 {[%emt 0:08:26]} 17. Nd3 {[%emt 0:05:31]} b6 {[%emt 0:00:45]} 18. Rae1 {[%emt 0:06:26]} Nf5 {[%emt 0:02:07]} 19. Bg4 {[%emt 0:01:54]} Rfe8 {[%emt 0:09:00]} 20. Bf3 {[%emt 0:07:21]} Rac8 {[%emt 0:00:58]} 21. g4 {[%emt 0:07:38]} Nd6 {[%emt 0:01:41]} 22. g5 {[%emt 0:01:53]} Ne4 {[%emt 0:02:19]} 23. Bxe4 {[%emt 0:11:16]} dxe4 {[%emt 0:00:06]} 24. Nb4 {[%emt 0:01:47]} Bf8 {[%emt 0:02:49]} 25. c4 {[%emt 0:01:04]} a5 {[%emt 0:02:40]} 26. Nc2 {[%emt 0:00:15]} f5 {[%emt 0:00:12]} 27. h4 {[%emt 0:10:09]} Bg7 {[%emt 0:02:38]} 28. Qe3 {[%emt 0:01:39]} b5 {[%emt 0:00:15]} 29. c5 {[%emt 0:00:47]} Bc6 {[%emt 0:00:16]} 30. Kg2 {[%emt 0:00:49]} Rcd8 {[%emt 0:03:22]} 31. Rh1 {[%emt 0:00:28]} e5 {[%emt 0:02:24]} 32. Kg3 {[%emt 0:01:32]} exf4+ {[%emt 0:02:23]} 33. Qxf4 {[%emt 0:00:04]} Qxf4+ {[%emt 0:00:25]} 34. Kxf4 {[%emt 0:00:01]} e3 {[%emt 0:00:11]} 35. Rhg1 {[%emt 0:01:25]} Re4+ {[%emt 0:01:48]} 36. Kg3 {[%emt 0:00:11]} f4+ {[%emt 0:05:20]} 37. Kh3 {[%emt 0:00:47]} e2 {[%emt 0:01:13]} 38. Rg2 {[%emt 0:00:21]} f3 {[%emt 0:00:07]} 39. Rf2 {[%emt 0:00:03]} Rf8 {[%emt 0:03:10]} 40. Kg3 {[%emt 0:00:00]} h5 {[%emt 0:00:00]} 41. gxh6 {[%emt 0:07:08]} Bf6 {[%emt 0:07:05]} 42. Rh1 {[%emt 0:04:20]} Bd8 {[%emt 0:00:07]} 43. Bc1 {[%emt 0:04:06]} Bc7+ {[%emt 0:00:16]} 0-1

[Event "EYCC Girls U14 2018"]
[Site "Riga"]
[Date "2018.08.28"]
[Round "8"]
[White "Guillo Longares, Cecilia"]
[Black "Levitan, Ronit"]
[Result "0-1"]
[ECO "D31"]
[WhiteElo "2030"]
[BlackElo "1933"]
[Annotator "NA RC"]
[PlyCount "52"]
[EventDate "2018.08.20"]
[EventType "swiss"]
[EventCountry "LAT"]
[SourceTitle "playchess.com"]
[Source "ChessBase"]
[SourceQuality "1"]
[TimeControl "40/5400+30:1800+30"]

1. d4 {[%emt 0:00:00]} d5 {[%emt 0:00:00]} 2. c4 {[%emt 0:00:00]} e6 {[%emt 0:00:00]} 3. Nc3 {[%emt 0:00:00]} Be7 {[%emt 0:00:00]} 4. cxd5 {[%emt 0:00:00]} exd5 {[%emt 0:00:00]} 5. Bf4 {[%emt 0:00:00]} Nf6 {[%emt 0:00:23]} 6. Qc2 {[%emt 0:00:08]} O-O {[%emt 0:03:28]} 7. e3 {[%emt 0:02:06]} c5 {[%emt 0:04:12]} 8. dxc5 {[%emt 0:04:23]} Nc6 {[%emt 0:05:03]} 9. Rd1 {[%emt 0:06:05]} Qa5 {[%emt 0:05:18]} 10. Qd2 $15 {[%emt 0:09:03]} (10. Nf3 $11) 10... Bxc5 {[%emt 0:10:13]} 11. Nxd5 {[%emt 0:10:37]} Qxd2+ {[%emt 0:01:43]} 12. Rxd2 {[%emt 0:00:07]} Nxd5 {[%emt 0:00:16]} 13. Rxd5 {[%emt 0:00:10]} Bb4+ {[%emt 0:00:06]} 14. Ke2 {[%emt 0:02:03]} Be6 {[%emt 0:00:17]} 15. Rd1 {[%emt 0:00:07]} Bxa2 {[%emt 0:03:19]} 16. Kf3 {[%emt 0:02:13]} Rfd8 {[%emt 0:03:10]} 17. Ra1 {[%emt 0:01:05]} Be6 {[%emt 0:14:32]} 18. e4 {[%emt 0:02:32]} Nd4+ {[%emt 0:01:43]} 19. Kg3 {[%emt 0:00:35]} Nb3 {[%emt 0:01:06]} 20. Rb1 {[%emt 0:03:10]} Rac8 {[%emt 0:12:18]} 21. Nf3 {[%emt 0:03:21]} h6 {[%emt 0:05:29]} 22. Be2 {[%emt 0:03:37]} Nc5 {[%emt 0:00:40]} 23. Be3 {[%emt 0:02:12]} Nxe4+ {[%emt 0:01:26]} 24. Kf4 {[%emt 0:00:30]} Nf6 {[%emt 0:01:13]} 25. Nd4 {[%emt 0:04:51]} Bd6+ {[%emt 0:01:02]} 26. Kf3 {[%emt 0:01:50]} Bg4# {[%emt 0:00:08]} 0-1

[Event "EYCC Girls U14 2018"]
[Site "Riga"]
[Date "2018.08.28"]
[Round "8"]
[White "Mironenko, Galina"]
[Black "Krasteva, Beloslava"]
[Result "0-1"]
[ECO "A04"]
[WhiteElo "1998"]
[BlackElo "2086"]
[Annotator "NA RC"]
[PlyCount "120"]
[EventDate "2018.08.20"]
[EventType "swiss"]
[EventCountry "LAT"]
[SourceTitle "playchess.com"]
[Source "ChessBase"]
[SourceQuality "1"]
[TimeControl "40/5400+30:1800+30"]

1. Nf3 c5 2. g3 g6 3. Bg2 Bg7 4. O-O Nc6 5. c4 e6 6. Nc3 Nge7 7. d3 O-O 8. Bg5 h6 9. Bf4 {A37: Englische Eröffnung (Symmetrische Variante)} (9. Bd2 b6 10. a3 Bb7 11. Rb1 a5 12. Nb5 d5 13. Qc1 Kh7 14. Rd1 Qd7 15. e3 Rac8 16. Qc2 e5 17. cxd5 Nxd5 {½-½ (85) Almasi,Z (2682)-Ponkratov,P (2613) Riadh 2017}) 9... d6 10. e4 Nd4 $146 ({Vorgänger:} 10... f5 11. Qd2 Kh7 12. Rfe1 g5 13. Bxg5 hxg5 14. Nxg5+ Kh8 15. Qe2 Ng8 16. Qh5+ Nh6 {0-1 (56) Jug,S (2081)-Cetina,K (2194) Celje 2007}) 11. Qd2 Kh7 12. Ne1 ({Don't blunder} 12. Nxd4 $2 cxd4 13. Ne2 e5 $19) 12... a6 13. Be3 Rb8 14. f4 b5 15. Qf2 Qb6 16. cxb5 Nxb5 17. Rc1 Nd4 18. b3 a5 19. g4 Bd7 20. Qh4 Qd8 21. f5 exf5 22. exf5 gxf5 23. Qh5 (23. Bf4 $17 Be6 24. gxf5 Nexf5 25. Qxd8 Rbxd8 26. Kh1) 23... fxg4 24. Rxf7 Rxf7 25. Qxf7 Qf8 26. Qh5 Qe8 27. Be4+ Bf5 28. Qxg4 Qg6 29. Qxg6+ Nxg6 30. Bxf5 Nxf5 31. Bf2 Nf4 32. Kf1 Rf8 33. Nd1 Nd4 34. Rc4 Be5 35. Ra4 Nc6 36. h4 Kg6 37. Re4 Nd4 38. Re3 Kh5 39. Ng2 Nd5 40. Re4 Rf3 41. Ne1 Rf7 42. Ng2 Kg6 (42... Nb4 $142 43. Nge3 Nxd3) 43. Re1 Nb4 44. Re3 Nxa2 45. Nb2 Nxb3 46. Nc4 Bd4 47. Re2 Nac1 48. Nxd6 Nxe2 $19 49. Nxf7 Kxf7 50. Kxe2 Bxf2 51. Kxf2 a4 52. Ne3 a3 53. Nc2 a2 54. Ke3 a1=Q 55. Nxa1 Nxa1 56. d4 Nc2+ 57. Kd3 Nxd4 58. Kc4 Ne6 59. Kd5 Kg6 60. Kc4 Kh5 0-1

[Event "EYCC Girls U14 2018"]
[Site "Riga"]
[Date "2018.08.28"]
[Round "8"]
[White "Bondareva, Daria"]
[Black "Wikar, Martyna"]
[Result "1/2-1/2"]
[ECO "B23"]
[WhiteElo "1922"]
[BlackElo "1974"]
[Annotator "NA RC"]
[PlyCount "119"]
[EventDate "2018.08.20"]
[EventType "swiss"]
[EventCountry "LAT"]
[SourceTitle "playchess.com"]
[Source "ChessBase"]
[SourceQuality "1"]
[TimeControl "40/5400+30:1800+30"]

1. e4 {[%emt 0:00:18] Bangiev,A} c5 {[%emt 0:00:00]} 2. Nc3 {[%emt 0:00:14]} e6 {[%emt 0:00:59]} 3. g3 {[%emt 0:00:06]} Nc6 {[%emt 0:01:04]} 4. Bg2 {[%emt 0:00:56]} Nge7 {[%emt 0:01:23]} 5. d3 {[%emt 0:00:18]} d5 {[%emt 0:01:54]} 6. exd5 {[%emt 0:02:03] B24: Closed Sicilian: 3 g3 sidelines} exd5 {[%emt 0:01:20]} 7. Nge2 {[%emt 0:04:54]} d4 {[%emt 0:03:52]} 8. Ne4 {[%emt 0:01:25]} Nd5 {[%emt 0:01:30]} 9. Nf4 {[%emt 0:01:47]} Nxf4 {[%emt 0:02:13]} 10. Bxf4 {[%emt 0:00:26]} Be7 {[%emt 0:01:13]} 11. h4 {[%emt 0:08:31]} Be6 {[%emt 0:03:15]} 12. O-O {[%emt 0:01:27]} h6 {[%emt 0:03:02]} 13. Re1 {[%emt 0:05:57]} O-O {[%emt 0:08:22]} 14. a3 {[%emt 0:02:56]} Qd7 {[%emt 0:02:04] [#]} 15. Qe2 $146 {[%emt 0:13:34]} ({Predecessor:} 15. Nd2 Rae8 16. Nc4 {½-½ (44) Stripunsky,A (2554)-Gurevich,D (2492) Seattle 2003 CBM 093 [Bangiev,A]}) 15... Rac8 {[%emt 0:02:43]} 16. f3 {[%emt 0:04:02]} Bd5 {[%emt 0:07:26]} 17. Qf1 {[%emt 0:03:11]} f5 {[%emt 0:02:24]} 18. Bh3 {[%emt 0:06:03]} Qd8 {[%emt 0:08:43]} 19. Nd2 {[%emt 0:00:04]} b5 {[%emt 0:05:29]} 20. b3 {[%emt 0:03:04]} Kh7 {[%emt 0:07:58]} 21. Qf2 {[%emt 0:05:37]} a6 {[%emt 0:06:03]} 22. Nf1 {[%emt 0:04:58]} Bd6 {[%emt 0:04:29]} 23. Bxd6 {[%emt 0:02:56]} Qxd6 {[%emt 0:00:08]} 24. f4 {[%emt 0:01:43]} c4 {[%emt 0:01:08]} 25. Nd2 {[%emt 0:03:29]} cxd3 {[%emt 0:03:21]} 26. cxd3 {[%emt 0:00:08]} Qf6 {[%emt 0:04:20]} 27. b4 {[%emt 0:05:21]} a5 {[%emt 0:02:18]} 28. bxa5 {[%emt 0:00:42]} Ra8 {[%emt 0:00:16]} 29. Rac1 {[%emt 0:01:52]} Rxa5 {[%emt 0:01:40]} 30. Nb1 {[%emt 0:00:04]} b4 {[%emt 0:01:10]} 31. axb4 {[%emt 0:04:59]} Ra2 {[%emt 0:01:45]} 32. Re2 {[%emt 0:03:19]} Nxb4 {[%emt 0:01:37]} 33. Rxa2 {[%emt 0:02:42]} Bxa2 {[%emt 0:03:24]} 34. Qd2 {[%emt 0:02:11]} Qd6 {[%emt 0:01:30]} 35. Na3 {[%emt 0:01:02]} Bd5 {[%emt 0:04:13]} 36. Nc4 {[%emt 0:01:47]} Qg6 {[%emt 0:00:44]} 37. Kf2 {[%emt 0:01:09]} Nc6 {[%emt 0:01:21]} 38. Na5 {[%emt 0:01:37]} Re8 {[%emt 0:01:05]} 39. Nxc6 {[%emt 0:01:24]} Bxc6 {[%emt 0:00:58]} 40. Re1 {[%emt 0:00:00]} Rxe1 {[%emt 0:00:00]} 41. Qxe1 {[%emt 0:01:22]} Qf6 {[%emt 0:03:38]} 42. Qa5 {[%emt 0:05:42]} Bd7 {[%emt 0:03:32]} 43. Qd5 {[%emt 0:01:05]} Be6 {[%emt 0:03:02]} 44. Qd6 {[%emt 0:02:25]} Kg6 {[%emt 0:01:36]} 45. Bg2 {[%emt 0:01:41]} Bb3 {[%emt 0:01:59]} 46. Qxf6+ {[%emt 0:02:26]} Kxf6 {[%emt 0:00:13]} 47. Ke2 {[%emt 0:01:48]} g5 {[%emt 0:01:10]} 48. Kd2 {[%emt 0:01:21]} Bf7 {[%emt 0:01:56]} 49. Bf3 {[%emt 0:00:30]} Be8 {[%emt 0:02:19]} 50. Kc2 {[%emt 0:02:28]} Ba4+ {[%emt 0:02:22]} 51. Kd2 {[%emt 0:00:04]} Bb3 {[%emt 0:00:42]} 52. Kc1 {[%emt 0:00:32]} Ba4 {[%emt 0:01:38]} 53. Kb2 {[%emt 0:00:54]} g4 {[%emt 0:05:08]} 54. Be2 {[%emt 0:01:30]} Ke6 $1 {[%emt 0:00:59]} 55. Ka3 {[%emt 0:00:51]} Bc2 $1 {[%emt 0:01:34]} 56. Kb4 {[%emt 0:00:33]} Kd5 {[%emt 0:00:28]} 57. h5 {[%emt 0:03:45]} Kd6 {[%emt 0:00:33]} 58. Kc4 {[%emt 0:00:44]} Ba4 {[%emt 0:00:06]} 59. Kxd4 {[%emt 0:00:12]} Be8 $11 {[%emt 0:00:07]} 60. Bd1 {[%emt 0:02:36] Ke5+ Ke4+} 1/2-1/2

[Event "EYCC Girls U14 2018"]
[Site "Riga"]
[Date "2018.08.28"]
[Round "8"]
[White "Katter, Katharina"]
[Black "Kirchei, Viktoriia"]
[Result "1/2-1/2"]
[ECO "B31"]
[WhiteElo "1830"]
[BlackElo "1987"]
[Annotator "NA RC"]
[PlyCount "69"]
[EventDate "2018.08.20"]
[EventType "swiss"]
[EventCountry "LAT"]
[SourceTitle "playchess.com"]
[Source "ChessBase"]
[SourceQuality "1"]
[TimeControl "40/5400+30:1800+30"]

1. e4 {[%emt 0:00:00]} c5 {[%emt 0:00:00]} 2. Nf3 {[%emt 0:00:00]} Nc6 {[%emt 0:00:00]} 3. Bb5 {[%emt 0:00:00]} g6 {[%emt 0:00:00]} 4. Bxc6 {[%emt 0:00:04]} bxc6 {[%emt 0:00:01]} 5. O-O {[%emt 0:00:22]} Bg7 {[%emt 0:00:05]} 6. Re1 {[%emt 0:00:20]} Nh6 {[%emt 0:00:11]} 7. e5 {[%emt 0:03:35] B31: Sicilian: 2...Nc6 3 Bb5 g6} (7. c3 O-O 8. h3 f5 9. e5 Nf7 10. d3 a5 11. Bf4 e6 12. Qd2 h6 13. h4 Re8 14. c4 d6 15. Nc3 Ra7 {1-0 (35) Anand,V (2776)-Dubov,D (2701) Moscow 2018}) 7... O-O {[%emt 0:00:39]} 8. c3 $146 {[%emt 0:02:16]} ({Predecessor:} 8. Nc3 d6 9. d3 Bg4 10. exd6 exd6 11. h3 Bxf3 12. Qxf3 Nf5 13. Qxc6 Qa5 14. Be3 Rab8 15. Nd5 Rfc8 16. Qd7 Rd8 17. Qc6 Rdc8 18. Qd7 Rd8 19. Qc6 Rdc8 {½-½ (19) Lin,C (2475)-Bai,J (2585) China 2017}) 8... d6 {[%emt 0:06:04]} 9. h3 {[%emt 0:06:04]} Qc7 {[%emt 0:07:35]} 10. Qe2 {[%emt 0:00:18]} Nf5 {[%emt 0:07:47]} 11. d3 {[%emt 0:02:41]} dxe5 {[%emt 0:06:53]} 12. Nxe5 {[%emt 0:03:23]} f6 {[%emt 0:00:20]} (12... Qxe5 $11 13. Qxe5 Bxe5 14. Rxe5 Rd8) 13. Nf3 {[%emt 0:02:13]} e5 {[%emt 0:00:27]} 14. Nbd2 {[%emt 0:07:23]} Nd6 {[%emt 0:13:56]} 15. Nb3 {[%emt 0:03:43]} Nb7 {[%emt 0:00:29]} 16. d4 {[%emt 0:10:56]} cxd4 {[%emt 0:01:28]} 17. cxd4 {[%emt 0:00:34]} exd4 {[%emt 0:03:50]} 18. Qc4+ {[%emt 0:01:35]} Kh8 {[%emt 0:00:42]} 19. Nbxd4 {[%emt 0:00:53]} Bd7 {[%emt 0:04:58]} 20. Ne6 {[%emt 0:08:22]} Bxe6 {[%emt 0:00:20]} 21. Rxe6 {[%emt 0:00:09]} Rac8 {[%emt 0:01:58]} 22. Bf4 {[%emt 0:00:56]} Qf7 {[%emt 0:01:15]} 23. Rae1 {[%emt 0:04:09]} Nd8 {[%emt 0:06:41]} 24. R6e4 {[%emt 0:00:32]} f5 {[%emt 0:00:17]} 25. Qxf7 {[%emt 0:01:41]} Nxf7 {[%emt 0:00:05]} 26. R4e2 {[%emt 0:01:12]} Bf6 {[%emt 0:02:39]} 27. Ne5 {[%emt 0:04:02]} Nxe5 {[%emt 0:02:53]} 28. Bxe5 {[%emt 0:00:07]} Bxe5 {[%emt 0:02:06]} 29. Rxe5 {[%emt 0:00:12]} Kg7 {[%emt 0:00:06]} 30. Rc1 {[%emt 0:03:16]} Rf6 {[%emt 0:06:19]} 31. Re7+ {[%emt 0:01:05]} Rf7 {[%emt 0:00:20]} 32. Re6 {[%emt 0:01:26]} Rf6 {[%emt 0:02:25]} 33. Re7+ {[%emt 0:00:40]} Rf7 {[%emt 0:00:08]} 34. Re6 $11 {[%emt 0:06:08]} Rf6 {[%emt 0:03:29]} 35. Re7+ {[%emt 0:00:43]} 1/2-1/2

[Event "EYCC Girls U14 2018"]
[Site "Riga"]
[Date "2018.08.28"]
[Round "8"]
[White "Hakobyan, Astghik"]
[Black "Kuhar, Larisa"]
[Result "1-0"]
[ECO "B90"]
[WhiteElo "1820"]
[BlackElo "1877"]
[Annotator "NA RC"]
[PlyCount "83"]
[EventDate "2018.08.20"]
[EventType "swiss"]
[EventCountry "LAT"]
[SourceTitle "playchess.com"]
[Source "ChessBase"]
[SourceQuality "1"]
[TimeControl "40/5400+30:1800+30"]

1. e4 {[%emt 0:00:00]} c5 {[%emt 0:00:00]} 2. Nf3 {[%emt 0:00:00]} d6 {[%emt 0:00:00]} 3. d4 {[%emt 0:00:00]} cxd4 {[%emt 0:00:00]} 4. Nxd4 {[%emt 0:00:00]} Nf6 {[%emt 0:00:02]} 5. Nc3 {[%emt 0:00:00]} a6 {[%emt 0:00:08]} 6. Qf3 {[%emt 0:00:02]} e6 {[%emt 0:04:38]} 7. Bg5 {[%emt 0:01:08]} Be7 {[%emt 0:00:20]} 8. O-O-O {[%emt 0:00:22]} Nbd7 {[%emt 0:01:56]} 9. Bxf6 {[%emt 0:05:01]} Bxf6 {[%emt 0:02:18]} 10. Qg3 {[%emt 0:01:06]} Qc7 {[%emt 0:10:29]} 11. f4 {[%emt 0:03:18] [#]} O-O $1 {[%emt 0:03:45]} 12. Qf3 {[%emt 0:04:19]} b5 {[%emt 0:04:16]} 13. g4 {[%emt 0:03:41]} g6 {[%emt 0:08:14]} 14. h4 $17 {[%emt 0:01:46]} Bb7 {[%emt 0:04:15]} 15. g5 {[%emt 0:09:36]} Bg7 {[%emt 0:00:23]} 16. h5 {[%emt 0:02:58]} b4 {[%emt 0:02:06]} 17. Nce2 {[%emt 0:06:08]} Rac8 {[%emt 0:01:40]} 18. hxg6 {[%emt 0:02:14]} hxg6 {[%emt 0:05:07]} 19. c3 {[%emt 0:19:31]} Nc5 {[%emt 0:04:35]} 20. Qh3 {[%emt 0:02:06]} Rfe8 {[%emt 0:01:43]} 21. f5 {[%emt 0:04:55]} exf5 {[%emt 0:11:36]} 22. Qh7+ {[%emt 0:01:35]} Kf8 {[%emt 0:00:09]} 23. exf5 {[%emt 0:01:09]} f6 {[%emt 0:20:22]} 24. gxf6 {[%emt 0:03:05]} Bxh1 {[%emt 0:02:33]} 25. Nf4 {[%emt 0:00:56]} Re3 {[%emt 0:06:31]} 26. Nxg6+ {[%emt 0:00:14]} Ke8 {[%emt 0:00:37]} 27. fxg7 Bd5 {[%emt 0:05:02]} 28. Nc2 {[%emt 0:05:44]} bxc3 {[%emt 0:00:39]} 29. g8=Q+ {[%emt 0:01:04]} Bxg8 {[%emt 0:00:02]} 30. Qxg8+ {[%emt 0:00:09]} Kd7 {[%emt 0:00:02]} 31. Qg7+ {[%emt 0:00:15]} Ke8 {[%emt 0:01:23]} 32. Qf8+ {[%emt 0:00:30]} Kd7 {[%emt 0:00:10]} 33. Qf7+ {[%emt 0:00:09]} Kd8 34. Qxc7+ {[%emt 0:00:05]} Rxc7 {[%emt 0:00:38]} 35. Rxd6+ {[%emt 0:00:18]} Kc8 {[%emt 0:01:06]} 36. Nxe3 {[%emt 0:00:04]} Ne4 {[%emt 0:00:43]} 37. Bxa6+ {[%emt 0:00:27]} Kb8 {[%emt 0:00:14]} 38. Rd8+ {[%emt 0:00:04]} Ka7 {[%emt 0:00:12]} 39. Bc4 {[%emt 0:00:04]} Nd2 {[%emt 0:00:55]} 40. Rxd2 {[%emt 0:00:00]} cxd2+ {[%emt 0:00:00]} 41. Kxd2 {[%emt 0:00:42]} Rc6 {[%emt 0:04:52]} 42. Ne5 {[%emt 0:00:26]} 1-0

[Event "EYCC Girls U14 2018"]
[Site "Riga"]
[Date "2018.08.29"]
[Round "9"]
[White "Loskutova, Viktoriya"]
[Black "Eizaguerri Floris, Maria"]
[Result "1-0"]
[ECO "B40"]
[WhiteElo "2088"]
[BlackElo "2065"]
[Annotator "NA"]
[PlyCount "95"]
[EventDate "2018.08.20"]
[EventType "swiss"]
[EventCountry "LAT"]
[SourceTitle "playchess.com"]
[Source "ChessBase"]
[SourceQuality "1"]
[TimeControl "40/5400+30:1800+30"]

1. e4 c5 {[%emt 0:00:00]} 2. Nf3 {[%emt 0:00:00]} e6 {[%emt 0:00:00]} 3. c4 {[%emt 0:00:00]} Nc6 {[%emt 0:00:02]} 4. Be2 {[%emt 0:00:00] B40: Sicilian: 2...e6, Unusual lines} e5 {[%emt 0:00:40] LiveBook: 24 Games} (4... Nf6 5. Nc3 d5 6. exd5 exd5 7. d4 Be6 8. cxd5 Nxd5 9. O-O Be7 10. dxc5 Nxc3 11. bxc3 Qxd1 12. Bxd1 Bxc5 13. Ng5 Bc4 14. Re1+ Be7 15. Ba3 O-O 16. Bxe7 {½-½ (27) Zvjaginsev,V (2661)-Rublevsky,S (2682) Sochi 2017}) 5. O-O {[%emt 0:00:32]} g6 6. d3 {[%emt 0:00:41]} Bg7 {[%emt 0:01:22]} 7. Nc3 {[%emt 0:00:07]} d6 {[%emt 0:00:15]} 8. h3 Nge7 {[%emt 0:00:56]} 9. a3 {[%emt 0:02:15]} O-O {[%emt 0:03:20]} 10. Bd2 {[%emt 0:07:04]} f5 {[%emt 0:07:08]} 11. Nd5 {[%emt 0:02:47]} h6 {[%emt 0:04:28]} 12. b4 {[%emt 0:21:28]} b6 $146 {[%emt 0:04:58]} 13. b5 {[%emt 0:21:58]} Nxd5 {[%emt 0:04:01]} 14. cxd5 {[%emt 0:01:05]} Ne7 {[%emt 0:00:33]} 15. a4 {[%emt 0:10:11]} Bd7 {[%emt 0:08:05]} 16. Bc3 {[%emt 0:10:41]} Qe8 {[%emt 0:13:51]} 17. Qb3 {[%emt 0:02:23]} Qf7 {[%emt 0:01:40]} 18. Nd2 {[%emt 0:06:20]} fxe4 {[%emt 0:05:59]} ({Black should try} 18... a6 $14) 19. dxe4 {[%emt 0:07:17]} Qf4 {[%emt 0:00:06]} 20. Qc2 {[%emt 0:01:02]} Qg5 {[%emt 0:06:53]} 21. Qd3 {[%emt 0:01:32]} Kh7 {[%emt 0:20:33]} 22. Nc4 {[%emt 0:02:10]} Nc8 {[%emt 0:01:59]} 23. Bd2 {[%emt 0:05:49]} Qf6 {[%emt 0:02:29]} 24. Qg3 {[%emt 0:08:31]} g5 {[%emt 0:04:09]} 25. Bg4 Bxg4 {[%emt 0:03:04]} 26. Qxg4 {[%emt 0:01:04]} Qg6 {[%emt 0:00:31]} 27. Ra3 {[%emt 0:06:00]} Ne7 28. a5 {[%emt 0:13:51]} Ng8 {[%emt 0:10:46]} 29. Qe2 Nf6 {[%emt 0:06:34]} 30. Re1 {[%emt 0:06:13]} Nd7 {[%emt 0:02:15]} 31. axb6 {[%emt 0:00:38]} axb6 {[%emt 0:00:58]} 32. Rea1 {[%emt 0:00:22]} Rab8 {[%emt 0:01:31]} 33. Ra7 {[%emt 0:00:17]} Rf7 {[%emt 0:00:59]} 34. Rc7 {[%emt 0:01:32]} Rbf8 {[%emt 0:01:38]} 35. f3 {[%emt 0:02:05]} Kh8 {[%emt 0:02:12]} 36. Raa7 {[%emt 0:01:01]} Nf6 {[%emt 0:00:21]} 37. Nxb6 {[%emt 0:01:57]} Rxc7 {[%emt 0:00:40]} 38. Rxc7 {[%emt 0:00:06]} Rb8 {[%emt 0:00:19]} 39. Rc8+ {[%emt 0:01:12]} Rxc8 {[%emt 0:00:05]} 40. Nxc8 {[%emt 0:00:00]} Qe8 {[%emt 0:00:00]} 41. Nxd6 {[%emt 0:00:10]} Qb8 {[%emt 0:01:31]} 42. Nf5 {[%emt 0:00:24]} Qa7 {[%emt 0:02:26]} 43. Qc4 {[%emt 0:06:42]} Nh5 $18 44. Be3 {[%emt 0:08:34]} Nf4 {[%emt 0:02:49]} 45. Qxc5 {[%emt 0:01:46]} Qa2 {[%emt 0:01:05]} 46. Bxf4 {[%emt 0:00:50]} exf4 {[%emt 0:00:06]} 47. Qc8+ {[%emt 0:00:26]} Kh7 {[%emt 0:00:05]} 48. Qb7 {[%emt 0:00:19]} 1-0

[Event "EYCC Girls U14 2018"]
[Site "Riga"]
[Date "2018.08.29"]
[Round "9"]
[White "Krasteva, Beloslava"]
[Black "Bondareva, Daria"]
[Result "1-0"]
[ECO "E45"]
[WhiteElo "2086"]
[BlackElo "1922"]
[Annotator "NA"]
[PlyCount "65"]
[EventDate "2018.08.20"]
[EventType "swiss"]
[EventCountry "LAT"]
[SourceTitle "playchess.com"]
[Source "ChessBase"]
[SourceQuality "1"]
[TimeControl "40/5400+30:1800+30"]

1. d4 {[%emt 0:00:00]} Nf6 {[%emt 0:00:12]} 2. c4 {[%emt 0:00:03]} e6 {[%emt 0:00:02]} 3. Nc3 {[%emt 0:00:36]} Bb4 {[%emt 0:00:14]} 4. e3 {[%emt 0:00:27]} b6 {[%emt 0:00:11]} 5. Nge2 {[%emt 0:00:35]} Ba6 {[%emt 0:00:17]} 6. Ng3 {[%emt 0:00:30]} O-O {[%emt 0:00:28]} 7. e4 {[%emt 0:01:46]} d5 {[%emt 0:05:50]} 8. cxd5 {[%emt 0:01:30] E45: Nimzo-Indian: Rubinstein: 4...b6 5 Ne2 Ba6} Bxf1 {[%emt 0:04:58]} 9. Kxf1 {[%emt 0:01:48] LiveBook: 10 Games} exd5 {[%emt 0:07:33]} (9... Bxc3 10. bxc3 exd5 11. e5 Ne4 12. f3 Nxg3+ 13. hxg3 f5 14. Qd3 Qd7 15. g4 Nc6 16. Ba3 Rf7 17. Re1 Re8 18. Rh5 g6 19. gxf5 Rxf5 20. Rxf5 Qxf5 21. Qxf5 gxf5 {1-0 (59) Guliev,S (2416)-Fendereski,N (2238) Baku 2016}) 10. e5 {[%emt 0:02:26]} Ne8 {[%emt 0:00:09]} 11. Qg4 {[%emt 0:04:05]} c6 $146 {[%emt 0:07:46]} ({Predecessor:} 11... Bxc3 12. bxc3 Qd7 13. Qxd7 Nxd7 14. Nf5 c5 15. Ne7+ Kh8 16. Nxd5 {0-1 (38) Taggatz,M (2193)-Schmid,R (2254) Bayern 2016}) 12. Nf5 {[%emt 0:08:47]} Kh8 {[%emt 0:03:39]} 13. a3 {[%emt 0:09:16]} (13. Ne2 $16) 13... Be7 {[%emt 0:04:05]} 14. h4 {[%emt 0:02:40]} Qd7 {[%emt 0:07:48]} (14... c5 $1 $14) 15. Bg5 {[%emt 0:06:14]} f6 {[%emt 0:08:17] [#]} (15... g6 $16) 16. e6 $1 {[%emt 0:02:22]} Qd8 {[%emt 0:08:50]} (16... Qb7 $142) 17. Bf4 {[%emt 0:01:04]} Rg8 {[%emt 0:00:56]} 18. Re1 {[%emt 0:01:47]} Na6 {[%emt 0:00:55]} 19. Rh3 {[%emt 0:03:41]} Nec7 {[%emt 0:03:56]} 20. Rg3 {[%emt 0:03:56]} Qf8 {[%emt 0:00:46]} 21. Bd6 {[%emt 0:11:39]} Re8 {[%emt 0:00:02]} 22. Bxe7 {[%emt 0:02:22]} Rxe7 {[%emt 0:00:02]} 23. Nxe7 {[%emt 0:01:51]} Qxe7 {[%emt 0:00:04]} 24. h5 {[%emt 0:00:59]} Ne8 {[%emt 0:02:44]} 25. Ne2 {[%emt 0:01:43]} f5 {[%emt 0:04:07]} 26. Qxf5 {[%emt 0:02:54]} Nd6 {[%emt 0:01:40]} 27. Qe5 {[%emt 0:05:09]} Ne4 {[%emt 0:01:12]} 28. Rh3 {[%emt 0:03:46]} Nd2+ {[%emt 0:02:10]} 29. Kg1 {[%emt 0:00:08]} Nc4 {[%emt 0:00:04]} 30. Qf5 {[%emt 0:01:45]} Rf8 {[%emt 0:02:38]} 31. Qg4 {[%emt 0:00:46]} Nc7 {[%emt 0:02:25]} 32. Nf4 {[%emt 0:00:47]} Kg8 $18 {[%emt 0:00:32]} 33. Ng6 {[%emt 0:01:53]} 1-0